bitfinex-derivatives/quotes_ETHF0:USTF0_20260303
["timestamp","ask_amount","ask_price","bid_price","bid_amount"]
[1772532530588,0.49456152,1949.6,1948.7,0.5431344]
[1772532531883,0.50932496,1949.8,1948.7,0.5431344]
[1772532534893,0.49914661,1949.7,1948.7,0.5431344]
[1772532538495,0.49002644,1949.3,1948.2,0.55588274]
[1772532541397,0.48956844,1949.1,1948.2,0.55588274]
[1772532541597,0.48956844,1948.9,1948.2,0.55588274]
[1772532542094,0.48956844,1949.1,1948.2,0.55588274]
[1772532543093,0.25653,1949.4,1948.1,0.00441161]
[1772532543094,0.48956844,1948.7,1948.1,0.00441161]
[1772532543292,0.25663,1948.6,1947.8,0.55588274]
[1772532543491,0.48938882,1948.5,1947.6,0.55588274]
[1772532543703,0.56236736,1948.1,1947.2,0.55588274]
[1772532544096,0.56236736,1948.1,1946.7,0.55588274]
[1772532544293,0.56236736,1947.9,1946.7,0.56249268]
[1772532544495,0.56236736,1947.7,1946.7,0.56249268]
[1772532545792,0.56236736,1947.5,1946.7,0.00660994]
[1772532546196,0.56236736,1947.5,1946.7,0.56249268]
[1772532547294,0.56236736,1948.0,1946.7,0.56249268]
[1772532548500,0.00382863,1948.1,1947.0,0.55588274]
[1772532548897,0.00382863,1948.1,1947.0,0.25684]
[1772532549099,0.56236736,1948.5,1947.3,0.55588274]
[1772532549294,0.56236736,1948.5,1947.5,0.55588274]
[1772532549504,0.56236736,1949.0,1947.5,0.55588274]
[1772532550102,0.5675783,1949.0,1947.5,0.55588274]
[1772532550604,0.56236736,1948.6,1947.5,0.55588274]
[1772532551801,0.25665,1948.5,1947.5,0.55588274]
[1772532552105,0.56236736,1948.4,1947.1,0.55588274]
[1772532552401,0.56236736,1948.2,1947.1,0.55588274]
[1772532552604,0.56236736,1948.0,1946.9,0.55588274]
[1772532557406,6.97964,1948.6,1946.9,0.55588274]
[1772532557407,0.57292495,1948.5,1946.9,0.55588274]
[1772532558511,0.57292495,1948.5,1947.1,0.56920546]
[1772532559313,0.59236212,1948.3,1947.1,0.56920546]
[1772532561612,0.59236212,1948.1,1946.8,0.56920546]
[1772532562010,0.59236212,1947.9,1946.8,0.56920546]
[1772532562812,0.59236212,1947.9,1947.1,0.56920546]
[1772532565917,0.59236212,1948.3,1947.4,0.56920546]
[1772532567724,0.59236212,1948.7,1947.4,0.56920546]
[1772532568929,0.59236212,1948.7,1947.7,0.56920546]
[1772532574027,0.59236212,1948.9,1948.0,0.56920546]
[1772532575129,0.59236212,1948.9,1947.7,0.56920546]
[1772532581039,0.59236212,1948.9,1947.9,1.5497412]
[1772532581238,0.59236212,1948.9,1948.0,0.56920546]
[1772532581535,0.59236212,1948.9,1947.3,26.0884906]
[1772532581536,6.31588,1947.8,1946.7,0.00660994]
[1772532581728,6.31525,1948.0,1946.7,0.60399269]
[1772532581729,0.25676,1947.7,1946.7,0.60399269]
[1772532582135,0.25669,1948.2,1947.0,0.59738275]
[1772532582438,7.29315727,1948.2,1947.2,8.01469712]
[1772532582633,0.25671,1948.0,1947.1,0.59738275]
[1772532583138,0.25671,1948.0,1946.9,0.59738275]
[1772532583340,0.25671,1948.0,1947.1,8.01469712]
[1772532583341,0.01811384,1947.9,1947.1,8.01469712]
[1772532584038,0.01811384,1947.9,1946.9,0.59738275]
[1772532586341,0.01811384,1947.9,1947.0,0.58906423]
[1772532589042,0.01811384,1947.9,1947.3,7.99155196]
[1772532589447,0.01811384,1947.9,1947.0,0.58906423]
[1772532589641,0.25674,1947.8,1946.8,0.59844399]
[1772532590242,0.25674,1947.8,1946.7,0.60505393]
[1772532590442,0.25674,1947.8,1946.9,7.99155196]
[1772532590641,0.25679,1947.4,1946.7,0.00660994]
[1772532590842,0.26049162,1947.4,1946.7,0.00660994]
[1772532591341,0.26049162,1947.4,1946.8,7.99155196]
[1772532591536,0.26049162,1947.4,1946.7,0.00660994]
[1772532594647,0.26049162,1947.4,1946.8,0.59804392]
[1772532595048,0.26049162,1947.4,1946.9,7.38310196]
[1772532595241,0.00370162,1947.4,1947.0,0.59804392]
[1772532595445,0.0055856,1947.4,1947.0,0.59804392]
[1772532595645,0.0055856,1947.4,1947.0,4.55182608]
[1772532595841,0.00370162,1947.4,1947.0,4.55182608]
[1772532596948,0.0055856,1947.4,1947.0,4.55182608]
[1772532597142,0.0055856,1947.4,1947.0,4.55079439]
[1772532597343,0.00370162,1947.4,1947.0,4.55079439]
[1772532597740,0.0096739,1947.4,1947.0,4.55079439]
[1772532597944,0.00597228,1947.6,1947.1,7.97807004]
[1772532598251,0.00597228,1947.3,1946.8,0.59496808]
[1772532598453,0.00597228,1947.1,1946.7,0.60157802]
[1772532598749,0.25682,1947.2,1946.7,0.00660994]
[1772532598945,0.25682,1947.2,1946.7,9.94e-06]
[1772532599343,0.0073482,1947.1,1946.7,9.94e-06]
[1772532599749,0.0073482,1947.1,1946.8,3.41605216]
[1772532599949,0.0073482,1946.9,1945.7,7.33737211]
[1772532600145,0.0073482,1946.9,1945.8,0.55737211]
[1772532600346,0.0073482,1946.9,1946.2,3.97342427]
[1772532600543,0.0073482,1946.9,1946.3,0.55737211]
[1772532600752,0.01247941,1946.9,1946.6,4.171228]
[1772532600949,0.5569482,1946.8,1946.6,4.171228]
[1772532601351,0.5569482,1946.8,1946.7,2.18392216]
[1772532601547,0.00513121,1946.9,1946.8,0.55737211]
[1772532601748,0.55652593,1947.3,1946.8,1.66182216]
[1772532601955,0.55652593,1947.3,1946.6,0.55737211]
[1772532602645,0.56052456,1947.3,1946.6,0.55737211]
[1772532602850,0.56052456,1947.3,1946.9,4.171228]
[1772532603054,0.56052456,1947.3,1946.7,0.55737211]
[1772532603352,0.25682,1947.2,1946.7,1.66182216]
[1772532603550,0.55856236,1947.1,1946.7,4.171228]
[1772532603952,0.55856236,1947.1,1946.7,3.06184575]
[1772532604649,0.25684,1947.0,1946.3,0.0045118]
[1772532604953,0.25684,1947.0,1946.3,0.60246602]
[1772532605348,0.25779539,1947.0,1946.4,2.25929868]
[1772532605750,0.25779539,1947.0,1946.5,2.25929868]
[1772532605950,0.00095539,1946.9,1946.5,0.59747652]
[1772532606255,0.00095539,1946.9,1946.6,1.66182216]
[1772532606648,0.25779539,1947.0,1946.5,0.59747652]
[1772532606854,0.00095539,1946.9,1946.6,1.66182216]
[1772532607154,0.00095539,1946.9,1946.6,1.14594216]
[1772532607356,0.00095539,1946.9,1946.3,0.60198832]
[1772532608054,0.25684,1947.0,1946.3,0.60198832]
[1772532611149,0.25684,1947.0,1946.3,0.0045118]
[1772532613348,0.0129503,1946.7,1946.3,0.59599087]
[1772532613653,0.0129503,1946.7,1946.3,0.0045118]
[1772532613952,0.0129503,1946.7,1946.1,0.59147907]
[1772532614455,0.2569,1946.6,1946.1,0.03344907]
[1772532614765,0.25692,1946.4,1946.1,0.56635605]
[1772532614960,7.28272729,1946.7,1946.1,0.56635605]
[1772532615159,0.55972729,1946.7,1946.1,0.56635605]
[1772532615561,0.55972729,1947.1,1946.1,0.56635605]
[1772532615756,0.55972729,1947.0,1946.1,0.56635605]
[1772532616662,0.55972729,1946.8,1946.1,0.56635605]
[1772532617562,0.81658729,1946.9,1946.1,0.56635605]
[1772532617863,0.57205363,1946.8,1946.1,0.56635605]
[1772532618260,0.57205363,1946.8,1946.1,0.00537966]
[1772532618261,0.57205363,1946.6,1946.1,0.00537966]
[1772532618461,0.57206602,1946.4,1946.1,9.66e-06]
[1772532619063,0.82897602,1946.5,1946.1,0.54421093]
[1772532619362,0.57206602,1946.4,1946.1,9.66e-06]
[1772532619666,0.57406174,1946.6,1946.1,9.66e-06]
[1772532620561,7.18706833,1946.7,1946.1,9.66e-06]
[1772532620765,0.25686,1946.9,1946.1,9.66e-06]
[1772532621162,0.83092174,1946.9,1946.1,9.66e-06]
[1772532622272,0.574323,1946.8,1946.1,9.66e-06]
[1772532623064,0.25686,1946.9,1946.1,9.66e-06]
[1772532623262,0.831183,1946.9,1946.1,9.66e-06]
[1772532623468,0.57928973,1946.8,1946.1,9.66e-06]
[1772532623970,0.83614973,1946.9,1946.1,9.66e-06]
[1772532625069,0.57928973,1946.8,1946.1,9.66e-06]
[1772532625570,0.25686,1946.9,1946.1,9.66e-06]
[1772532626473,0.83499978,1946.9,1946.1,9.66e-06]
[1772532626774,4.81345086,1947.3,1946.1,9.66e-06]
[1772532626970,0.00399863,1947.3,1946.4,0.54420127]
[1772532627370,0.59119248,1947.3,1946.4,0.54420127]
[1772532627876,0.00399863,1947.3,1946.4,0.54420127]
[1772532628773,0.58719385,1947.7,1946.4,0.54420127]
[1772532629775,0.58719385,1948.1,1946.6,0.54420127]
[1772532629974,0.00593975,1947.7,1946.8,0.54420127]
[1772532630573,0.00593975,1947.7,1946.8,7.27220127]
[1772532630775,0.00593975,1947.7,1946.9,0.54420127]
[1772532632475,0.5931336,1947.7,1946.9,0.54420127]
[1772532635979,0.58719385,1947.3,1946.3,0.54420127]
[1772532637281,0.58719385,1947.1,1946.3,0.54420127]
[1772532637583,0.58719385,1946.9,1946.1,0.54421093]
[1772532639183,0.58719385,1946.7,1946.1,0.54421093]
[1772532640682,0.58719385,1947.1,1946.1,0.54421093]
[1772532644390,0.58719385,1946.9,1946.1,0.54421093]
[1772532644788,7.16303697,1947.2,1946.1,0.54421093]
[1772532644994,0.58719385,1947.0,1946.1,0.54421093]
[1772532646096,0.84401385,1947.2,1946.1,0.54421093]
[1772532646391,0.58719385,1947.1,1946.1,0.54421093]
[1772532646895,0.58719385,1947.5,1946.3,0.54420127]
[1772532648791,0.58719385,1947.5,1946.4,0.55251856]
[1772532649295,0.58719385,1947.5,1946.6,0.55251856]
[1772532649596,0.54939868,1947.7,1946.6,0.55251856]
[1772532651695,0.54345893,1947.6,1946.6,0.55251856]
[1772532652390,0.54345893,1947.4,1946.6,0.55251856]
[1772532654491,0.54345893,1947.4,1946.3,0.55251856]
[1772532655894,0.54345893,1947.2,1946.3,0.55251856]
[1772532656799,0.54345893,1947.5,1946.3,0.55251856]
[1772532661094,0.54345893,1947.3,1946.5,0.55251856]
[1772532669297,0.54345893,1947.6,1946.5,0.55251856]
[1772532669603,0.54345893,1947.4,1946.5,0.55251856]
[1772532669800,0.54345893,1947.2,1946.5,0.55251856]
[1772532671499,0.54345893,1947.5,1946.5,0.55251856]
[1772532672101,0.54345893,1947.4,1946.5,0.55251856]
[1772532676909,0.54345893,1947.4,1946.6,0.56577774]
[1772532690014,0.53845786,1947.3,1946.6,0.56577774]
[1772532700515,0.53845786,1947.5,1946.9,0.59227282]
[1772532700715,0.53845786,1947.5,1946.7,1.03408718]
[1772532700716,0.53845786,1947.5,1946.8,0.59227282]
[1772532701019,0.53845786,1947.4,1946.8,0.59227282]
[1772532704313,7.25351815,1947.4,1946.6,0.59227282]
[1772532704519,0.53845786,1947.3,1946.6,0.59227282]
[1772532707525,1.03408718,1947.1,1946.4,0.59227282]
[1772532707830,0.53845786,1947.0,1946.4,0.59227282]
[1772532711226,0.53845786,1947.0,1946.3,0.56353389]
[1772532712026,0.55668188,1946.5,1946.1,9.66e-06]
[1772532713319,1.29094718,1946.9,1946.1,9.66e-06]
[1772532713521,0.55668188,1946.7,1946.1,9.66e-06]
[1772532714521,0.55668188,1946.8,1946.4,0.56353389]
[1772532714926,7.22358872,1947.1,1946.4,0.56353389]
[1772532714927,0.55668188,1947.0,1946.4,0.56353389]
[1772532716222,0.55668188,1947.3,1946.6,0.56353389]
[1772532716428,0.2568,1947.4,1946.6,0.56353389]
[1772532716429,0.55668188,1947.2,1946.6,0.56353389]
[1772532718831,0.55668188,1947.0,1946.5,0.56353389]
[1772532719525,0.81351188,1947.1,1946.5,0.56353389]
[1772532719728,0.55668188,1947.0,1946.5,0.56353389]
[1772532720528,0.55668188,1947.4,1946.6,0.56353389]
[1772532720725,0.55668188,1947.3,1946.6,0.56353389]
[1772532721034,0.55668188,1947.1,1946.6,0.56353389]
[1772532722633,0.55668188,1947.1,1946.4,0.56353389]
[1772532722836,0.55668188,1946.9,1946.4,0.56353389]
[1772532723132,0.55668188,1947.0,1946.4,0.56353389]
[1772532727136,0.55668188,1947.1,1946.4,0.56353389]
[1772532727343,0.55668188,1947.1,1946.6,0.56353389]
[1772532727531,0.55668188,1947.6,1947.1,0.56353389]
[1772532727739,0.55668188,1947.6,1947.3,0.56353389]
[1772532728037,0.55668188,1947.6,1947.2,0.56353389]
[1772532728237,0.55668188,1947.6,1946.9,0.56353389]
[1772532729344,0.55668188,1947.6,1947.1,0.56353389]
[1772532730540,0.55668188,1947.6,1946.9,0.56353389]
[1772532731146,1.04002693,1947.7,1946.8,0.56353389]
[1772532731147,0.55668188,1947.4,1946.8,0.56353389]
[1772532731743,1.03408718,1947.5,1946.6,0.56353389]
[1772532731744,0.55668188,1947.2,1946.6,0.56353389]
[1772532731945,0.55668188,1947.3,1946.6,0.56353389]
[1772532732449,1.59076906,1947.3,1946.6,0.56353389]
[1772532732649,0.55668188,1947.2,1946.6,0.56353389]
[1772532734050,0.25678,1947.6,1946.8,0.56353389]
[1772532734051,0.55668188,1947.4,1946.8,0.56353389]
[1772532734452,0.56262163,1947.7,1947.2,0.56353389]
[1772532735445,0.00593975,1947.7,1947.2,0.56353389]
[1772532736051,0.56262163,1947.7,1947.2,0.56353389]
[1772532738352,0.56262163,1947.7,1946.7,6.725]
[1772532738353,0.56262163,1947.7,1946.8,0.5558801]
[1772532742162,0.59721286,1947.5,1946.3,0.5558801]
[1772532742352,0.59721286,1947.3,1946.3,0.5558801]
[1772532747664,0.59721286,1947.6,1946.3,0.5558801]
[1772532748761,0.59721286,1947.6,1946.5,0.5558801]
[1772532755464,0.59721286,1947.6,1946.7,0.5558801]
[1772532755662,0.00593975,1947.7,1947.0,0.5558801]
[1772532755961,0.00593975,1947.7,1947.1,0.5558801]
[1772532755962,0.60315261,1947.7,1947.1,0.5558801]
[1772532756968,0.59721286,1948.0,1947.1,0.5558801]
[1772532757972,0.60313521,1948.0,1947.1,0.5558801]
[1772532758471,0.60313521,1948.0,1947.3,0.5558801]
[1772532759671,0.00592235,1948.0,1947.3,0.5558801]
[1772532760073,0.60313521,1948.0,1947.3,0.5558801]
[1772532760871,0.60313521,1948.0,1947.4,0.5558801]
[1772532761770,0.60313521,1948.0,1947.3,0.5558801]
[1772532766670,0.59721286,1947.9,1947.3,0.5558801]
[1772532766872,0.59721286,1947.9,1947.1,0.5558801]
[1772532768374,0.59713081,1947.7,1947.1,0.5558801]
[1772532768671,0.59713081,1947.7,1946.8,0.59613278]
[1772532772773,0.59713081,1947.7,1946.9,0.59613278]
[1772532774275,0.59713081,1947.8,1946.9,0.59613278]
[1772532774478,0.59713081,1947.8,1946.7,6.725]
[1772532774479,0.60305316,1948.0,1947.1,0.59613278]
[1772532778778,0.00592235,1948.0,1947.3,0.59613278]
[1772532778983,0.00592235,1948.0,1947.5,0.59613278]
[1772532779184,0.00592235,1948.0,1947.5,0.60000934]
[1772532779584,0.59713081,1948.2,1947.5,0.60000934]
[1772532780585,0.60235314,1948.2,1947.5,0.60000934]
[1772532781587,7.8944989,1949.0,1947.5,0.60000934]
[1772532781588,0.59713081,1948.6,1947.5,0.60000934]
[1772532782786,0.00584695,1948.6,1947.7,0.59613278]
[1772532782985,0.59713081,1948.9,1947.9,0.59613278]
[1772532783286,0.59713081,1949.2,1948.1,0.59613278]
[1772532783986,0.60129853,1949.2,1948.1,0.59613278]
[1772532787388,0.59713081,1949.1,1948.1,0.59613278]
[1772532787685,0.59713081,1948.9,1947.9,0.59613278]
[1772532787989,0.59713081,1948.7,1947.7,0.59613278]
[1772532791992,0.25661,1948.8,1947.5,0.60000934]
[1772532791993,0.59713081,1948.5,1947.5,0.60000934]
[1772532792387,7.1780225,1948.7,1947.5,0.60000934]
[1772532792388,0.59713081,1948.3,1947.5,0.60000934]
[1772532799790,0.59713081,1948.3,1947.5,0.00387656]
[1772532799997,0.56589674,1948.1,1947.5,0.00387656]
[1772532801494,0.56589674,1948.1,1947.5,0.59335114]
[1772532801892,0.56589674,1948.1,1947.2,0.58947458]
[1772532802796,0.56589674,1948.1,1947.2,0.59531983]
[1772532807502,0.56589674,1947.9,1947.2,0.59531983]
[1772532809503,0.56589674,1947.9,1947.2,0.00584525]
[1772532809805,0.56589674,1947.9,1947.2,0.59531983]
[1772532812503,0.25674,1947.8,1947.2,0.59531983]
[1772532812701,0.56589674,1947.7,1947.2,0.59531983]
[1772532813806,0.56589674,1947.7,1947.2,0.00584525]
[1772532815294,0.56589674,1947.5,1946.9,0.58947458]
[1772532815495,0.56589674,1947.5,1946.5,0.58947458]
[1772532815697,0.56589674,1947.3,1946.5,0.58947458]
[1772532816305,0.56589674,1947.3,1946.5,0.59337749]
[1772532818106,0.56589674,1947.1,1946.5,0.59337749]
[1772532818300,0.56589674,1947.1,1946.5,0.00390291]
[1772532820202,0.56589674,1947.1,1946.2,0.58947458]
[1772532820401,0.56589674,1946.9,1946.2,0.58947458]
[1772532821300,0.56589674,1946.9,1946.2,0.59492503]
[1772532821506,0.56589674,1946.7,1946.2,0.00545045]
[1772532822603,0.56589674,1946.7,1946.2,0.59492503]
[1772532823704,0.25687,1946.8,1946.2,0.59492503]
[1772532823899,0.82276674,1946.8,1946.2,0.59492503]
[1772532824106,0.56589674,1946.7,1946.2,0.00545045]
[1772532825206,0.56589674,1946.7,1946.2,0.59492503]
[1772532825808,0.56589674,1947.1,1946.2,0.59492503]
[1772532826508,0.56589674,1946.7,1946.2,0.59492503]
[1772532826703,0.56589674,1946.3,1945.9,0.58947458]
[1772532827810,0.57069784,1946.3,1945.9,0.59412566]
[1772532829613,0.57069784,1946.3,1945.9,0.00465108]
[1772532830407,0.57069784,1946.3,1945.9,0.57617384]
[1772532830710,0.57069784,1946.3,1945.9,0.00465108]
[1772532830905,0.57069784,1946.3,1945.9,0.57617384]
[1772532831311,0.0048011,1946.3,1945.9,0.57617384]
[1772532831511,0.57739771,1946.5,1945.9,0.57617384]
[1772532831712,0.25685,1947.0,1945.9,0.57617384]
[1772532831713,0.57739771,1946.9,1945.9,0.57617384]
[1772532832216,0.57739771,1947.3,1946.0,0.57152276]
[1772532832417,0.58360586,1947.3,1946.0,0.57152276]
[1772532832917,0.00620815,1947.3,1946.4,0.57152276]
[1772532833914,0.57739771,1947.6,1946.4,0.57152276]
[1772532834716,0.57739771,1947.6,1946.6,0.57152276]
[1772532834920,0.5824168,1947.6,1946.6,0.57152276]
[1772532837221,0.5824168,1947.6,1946.8,0.57152276]
[1772532839925,0.00501909,1947.6,1946.8,0.57152276]
[1772532840125,7.17974583,1948.3,1947.0,0.57152276]
[1772532840330,0.57739771,1948.2,1947.0,0.57152276]
[1772532840734,0.57739771,1948.0,1947.0,0.57152276]
[1772532841129,0.58123544,1948.0,1947.0,0.57152276]
[1772532844830,0.57739771,1947.8,1947.0,0.57152276]
[1772532846836,0.57739771,1947.6,1946.8,0.57152276]
[1772532852035,0.57739771,1947.4,1946.4,0.57152276]
[1772532853839,0.57739771,1947.8,1946.6,0.57152276]
[1772532854742,0.57739771,1947.8,1946.8,0.57152276]
[1772532862338,0.54430516,1947.7,1946.8,0.57152276]
[1772532863334,0.54430516,1947.9,1946.8,0.57152276]
[1772532864444,0.54430516,1947.9,1947.2,0.58349861]
[1772532865847,0.54430516,1947.8,1947.2,0.58349861]
[1772532868442,0.54430516,1947.8,1947.0,0.58349861]
[1772532869744,0.54430516,1947.7,1947.0,0.58349861]
[1772532869941,0.54430516,1947.4,1946.1,0.58349861]
[1772532870248,0.54430516,1947.2,1946.1,0.58349861]
[1772532872349,1.7858,1947.1,1946.1,0.58349861]
[1772532873446,2.33010516,1947.1,1946.1,0.58349861]
[1772532873650,0.54430516,1947.0,1946.1,0.58349861]
[1772532874546,0.54430516,1947.0,1946.2,0.58349861]
[1772532883250,1.7858,1947.1,1946.3,0.58349861]
[1772532883750,1.7858,1947.1,1946.4,0.25692]
[1772532883949,0.54430516,1947.4,1946.7,0.58349861]
[1772532884151,0.54430516,1947.4,1946.9,0.58349861]
[1772532884353,0.54430516,1947.9,1946.9,0.58349861]
[1772532884548,0.54430516,1947.8,1946.9,0.58349861]
[1772532885245,0.54430516,1947.8,1946.7,0.58349861]
[1772532885844,0.80105516,1947.7,1946.7,0.58349861]
[1772532886043,0.54430516,1947.6,1946.7,0.58349861]
[1772532887150,0.54430516,1947.5,1946.5,0.58349861]
[1772532891655,0.54430516,1947.5,1946.6,0.56587277]
[1772532900662,0.54430516,1947.5,1946.7,0.56587277]
[1772532901964,0.54430516,1947.5,1946.8,0.56587277]
[1772532902156,1.99783035,1947.6,1946.8,0.56587277]
[1772532902465,0.54223035,1947.5,1946.8,0.56587277]
[1772532902665,0.54223035,1947.5,1946.8,7.29187277]
[1772532903065,0.54223035,1947.5,1946.3,0.25693]
[1772532903066,0.54223035,1947.5,1946.7,0.56587277]
[1772532911975,0.54223035,1947.5,1946.8,7.29287277]
[1772532912675,0.54223035,1947.5,1946.9,0.56587277]
[1772532913174,0.54223035,1947.5,1946.8,7.29287277]
[1772532913570,0.54223035,1947.5,1946.9,0.56587277]
[1772532916178,1.4556,1947.6,1946.9,0.56587277]
[1772532916380,0.54223035,1947.8,1947.0,0.56587277]
[1772532916780,0.00383773,1948.0,1947.2,0.56587277]
[1772532918283,0.54784763,1948.0,1947.2,0.56587277]
[1772532918686,0.54784763,1948.0,1947.4,0.58939452]
[1772532918887,0.54784763,1948.0,1947.4,0.59364118]
[1772532919282,0.54784763,1948.0,1947.4,6.73124666]
[1772532919485,0.54784763,1948.0,1947.4,0.00424666]
[1772532922582,0.5440099,1947.8,1947.0,6.726]
[1772532923189,0.5440099,1947.8,1946.8,0.58939452]
[1772532923383,0.5440099,1947.8,1946.8,7.31539452]
[1772532923580,0.5440099,1947.8,1946.8,7.31937597]
[1772532923781,0.5440099,1947.8,1946.9,0.58939452]
[1772532924487,0.5440099,1947.7,1946.9,0.58939452]
[1772532928593,0.5440099,1947.4,1946.9,0.58939452]
[1772532929193,0.5440099,1947.7,1947.0,0.58939452]
[1772532929392,1.57803479,1947.7,1947.0,0.58939452]
[1772532929593,0.5440099,1947.6,1947.0,0.58939452]
[1772532937298,0.5440099,1947.6,1946.9,0.58939452]
[1772532938200,0.5440099,1947.4,1946.9,0.58939452]
[1772532939301,1.03402489,1947.5,1946.6,0.58939452]
[1772532939302,0.5440099,1947.0,1946.6,0.58939452]
[1772532940001,0.5440099,1947.0,1946.5,7.31639452]
[1772532940202,0.5440099,1946.8,1946.4,0.58939452]
[1772532940402,0.5440099,1946.8,1946.4,0.59396545]
[1772532941998,0.5440099,1947.3,1946.4,0.59396545]
[1772532943907,0.5440099,1947.3,1946.4,0.00457093]
[1772532944406,0.5440099,1947.3,1946.4,0.59396545]
[1772532946302,0.5440099,1947.6,1946.4,0.59396545]
[1772532946505,0.5440099,1947.6,1946.6,0.58939452]
[1772532948809,0.57608171,1947.4,1946.5,7.29879856]
[1772532949412,0.57608171,1947.4,1946.5,0.57079856]
[1772532952216,0.57608171,1947.4,1946.6,7.29779856]
[1772532952610,0.57608171,1947.2,1946.7,0.57079856]
[1772532954715,0.57608171,1947.2,1946.6,0.57079856]
[1772532955018,0.57608171,1947.2,1946.4,0.00457093]
[1772532955019,0.57608171,1947.2,1946.4,0.57536949]
[1772532955213,0.57608171,1947.2,1946.4,7.30236949]
[1772532956310,0.57608171,1947.2,1946.5,0.57079856]
[1772532960620,0.57608171,1947.1,1946.5,0.57079856]
[1772532967219,3.29512659,1947.3,1946.5,0.57079856]
[1772532967420,1.6847,1947.3,1946.9,0.57079856]
[1772532967730,0.38342193,1947.3,1947.1,0.57079856]
[1772532967922,0.57608171,1947.5,1947.1,0.57079856]
[1772532973732,0.57608171,1947.5,1947.0,6.82315755]
[1772532973932,0.57608171,1947.5,1947.0,6.727]
[1772532975129,0.57608171,1947.5,1947.0,6.82215755]
[1772532976529,0.57608171,1947.5,1947.0,6.727]
[1772532978130,0.57608171,1947.5,1946.4,0.26149093]
[1772532978434,0.54976903,1947.3,1946.5,0.09649781]
[1772532978633,0.54976903,1947.3,1946.6,6.727]
[1772532980528,0.25682,1947.2,1946.4,0.00457093]
[1772532980732,0.55094307,1947.1,1946.5,6.727]
[1772532982438,0.25684,1947.0,1946.4,0.00457093]
[1772532982636,0.548407,1946.7,1945.8,0.09922187]
[1772532982837,0.548407,1946.7,1946.0,0.09922187]
[1772532983038,0.548407,1946.7,1946.0,6.82622187]
[1772532983437,0.548407,1946.7,1946.1,0.09922187]
[1772532983740,0.548407,1946.7,1946.1,0.10525334]
[1772532984441,0.548407,1946.7,1946.1,0.00603147]
[1772532984640,0.548407,1946.7,1946.1,0.10633417]
[1772532987747,0.548407,1946.7,1946.1,0.00603147]
[1772532987945,0.54237017,1946.5,1945.6,6.83929553]
[1772532988143,0.54237017,1946.5,1945.7,6.728]
[1772532988648,0.54237017,1946.5,1945.8,0.11129553]
[1772532988838,0.54762242,1946.5,1945.8,0.11591009]
[1772532991356,0.54762242,1946.5,1945.9,6.85814563]
[1772532991555,0.54762242,1946.5,1946.0,0.13014563]
[1772532993151,0.00525225,1946.5,1946.0,0.13014563]
[1772532993554,0.54451714,1946.5,1946.0,0.13014563]
[1772532994459,0.54451714,1946.5,1945.9,6.8732599]
[1772532994757,0.54451714,1946.5,1946.0,0.1452599]
[1772532995260,0.53926489,1946.4,1945.8,0.00461456]
[1772532996266,0.53926489,1946.2,1945.5,0.14569562]
[1772532996455,0.53926489,1946.2,1945.5,0.09569562]
[1772532996855,0.53926489,1946.2,1945.4,0.09569562]
[1772532997057,0.53926489,1946.2,1945.4,6.82369562]
[1772532997258,0.53926489,1946.2,1945.4,0.00483415]
[1772532997459,0.53926489,1946.2,1945.4,0.10052977]
[1772532999855,0.25694,1946.3,1944.6,0.25716]
[1772532999856,0.54929611,1946.0,1944.7,0.09744366]
[1772533000759,0.54929611,1946.0,1944.7,0.10180853]
[1772533000959,0.25699,1945.9,1944.7,0.10180853]
[1772533001162,0.54929611,1945.8,1944.7,0.10180853]
[1772533001464,0.54929611,1945.8,1944.9,0.09744366]
[1772533001661,0.54385484,1946.0,1945.1,0.10832619]
[1772533001862,0.54385484,1946.0,1945.3,0.10832619]
[1772533002759,0.54385484,1946.0,1945.3,6.83732619]
[1772533003062,0.54385484,1946.0,1945.4,0.10832619]
[1772533004065,0.54677459,1946.4,1945.4,0.10832619]
[1772533004664,0.54677459,1946.2,1945.4,0.10832619]
[1772533006964,0.54677459,1946.2,1945.3,0.10949548]
[1772533007367,0.25696,1946.1,1945.3,0.10949548]
[1772533007562,0.54076969,1946.0,1945.3,0.10949548]
[1772533007867,0.59541421,1945.8,1944.9,0.11379023]
[1772533010568,0.59541421,1945.8,1945.0,0.11461054]
[1772533010763,0.59541421,1945.8,1944.8,0.11461054]
[1772533013869,0.59541421,1945.6,1944.7,0.13924494]
[1772533014370,0.59541421,1945.6,1944.7,0.00436487]
[1772533014666,0.59541421,1945.4,1944.7,0.00436487]
[1772533015369,0.59541421,1945.4,1944.3,0.13924494]
[1772533015566,0.59541421,1945.4,1944.5,0.14929477]
[1772533015763,0.59541421,1945.5,1944.5,0.14929477]
[1772533016067,0.59541421,1945.7,1944.7,0.14929477]
[1772533016264,0.59541421,1945.7,1944.7,0.15555881]
[1772533020267,0.59541421,1945.7,1944.9,0.1104111]
[1772533020466,0.59541421,1946.1,1945.1,0.1104111]
[1772533020971,0.59541421,1946.2,1945.1,0.1104111]
[1772533021266,0.59541421,1946.2,1945.0,12.2232519]
[1772533021267,0.59541421,1946.2,1945.3,0.1104111]
[1772533021672,1.36750463,1946.3,1945.6,0.25703]
[1772533021868,0.94215328,1946.3,1945.7,6.729]
[1772533022361,1.53981809,1946.3,1945.6,0.25703]
[1772533022569,0.59766481,1946.2,1945.6,6.98603]
[1772533022870,0.94215328,1946.3,1945.6,6.98603]
[1772533023771,0.94215328,1946.3,1945.7,6.728]
[1772533024773,0.59951038,1947.0,1945.8,0.257]
[1772533025369,0.59951038,1947.4,1945.8,41.057]
[1772533025571,0.59951038,1947.4,1946.0,0.25698]
[1772533025770,0.60394094,1947.4,1946.0,0.25698]
[1772533026271,0.55394094,1947.4,1946.1,0.04681406]
[1772533026471,0.55394094,1947.4,1946.3,0.04681406]
[1772533026671,0.55394094,1947.4,1946.5,0.04681406]
[1772533027372,0.59541421,1947.0,1946.5,6.728]
[1772533027869,0.00443056,1947.4,1946.5,6.728]
[1772533027870,0.59541421,1946.7,1946.5,6.728]
[1772533028367,0.59541421,1947.3,1946.6,0.04645731]
[1772533029167,1.28413056,1947.4,1946.6,0.04645731]
[1772533030371,0.59541421,1947.7,1946.7,6.727]
[1772533030575,0.25669,1948.2,1946.2,0.25694]
[1772533030576,0.59766481,1947.5,1946.6,6.727]
[1772533030771,0.59766481,1947.5,1946.2,0.25694]
[1772533031069,0.59766481,1947.5,1946.3,6.727]
[1772533031269,0.60133864,1947.5,1946.3,6.727]
[1772533031472,0.60658873,1947.5,1946.3,6.727]
[1772533032472,0.60658873,1947.5,1946.4,0.25692]
[1772533032673,0.60133864,1947.5,1946.4,0.25692]
[1772533032974,0.00367383,1947.5,1946.4,6.08241289]
[1772533033170,0.00367383,1947.5,1946.7,0.25687]
[1772533033675,0.60294608,1947.5,1946.8,6.727]
[1772533034276,0.60294608,1947.5,1946.7,0.25687]
[1772533034475,0.00367383,1947.5,1946.8,6.726]
[1772533034676,0.60294608,1947.5,1946.8,6.726]
[1772533035871,1.4663,1947.6,1946.9,0.25686]
[1772533036077,0.6019527,1948.0,1946.9,0.25686]
[1772533036273,0.6019527,1948.0,1947.0,5.4867577]